bitfinex-derivatives/quotes_BNBF0:USTF0_20250417
["timestamp","ask_amount","ask_price","bid_price","bid_amount"]
[1744896889112,0.30408159,587.85,586.77,1.85684905]
[1744896889313,0.34022863,587.84,586.77,1.85684905]
[1744896889515,0.30408159,587.83,586.77,1.85684905]
[1744896889718,0.3402402,587.82,586.77,1.85684905]
[1744896894814,0.3402402,587.82,586.77,0.34084905]
[1744896896620,0.9152402,587.82,586.77,0.34084905]
[1744896898921,0.9152402,587.82,586.77,0.74684905]
[1744896899123,0.9152402,587.82,586.77,1.32684905]
[1744896900018,0.9152402,587.82,586.77,1.79084905]
[1744896901722,0.60044774,587.81,586.77,1.79084905]
[1744896901922,0.64428713,587.8,586.77,1.79084905]
[1744896902123,0.64429292,587.79,586.77,1.79084905]
[1744896902323,0.64429871,587.78,586.77,1.79084905]
[1744896902525,0.6443045,587.77,586.77,1.79084905]
[1744896902726,0.30403535,587.76,586.77,1.45]
[1744896903028,0.6442539,587.75,586.77,1.45]
[1744896903219,0.64425969,587.74,586.77,1.45]
[1744896903425,0.64426548,587.73,586.77,1.45]
[1744896903722,0.64427127,587.72,586.77,1.45]
[1744896903922,0.30397317,587.71,586.77,1.45]
[1744896904726,0.29646037,587.7,586.77,1.45]
[1744896904927,0.30397317,587.69,586.77,1.45]
[1744896905225,0.34032126,587.68,586.77,1.45]
[1744896905433,0.30397317,587.67,586.77,1.45]
[1744896905728,0.34033284,587.66,586.77,1.45]
[1744896906433,0.30388639,587.65,586.77,1.45]
[1744896907432,0.29650836,587.64,586.77,1.45]
[1744896907834,0.30385208,587.63,586.77,1.45]
[1744896908034,0.3403618,587.61,586.77,1.45]
[1744896908233,0.30385208,587.6,586.77,1.45]
[1744896908431,0.34037918,587.58,586.77,1.45]
[1744896908632,0.30385208,587.57,586.77,1.45]
[1744896909235,0.34037918,587.58,586.77,1.45]
[1744896909236,0.34039076,587.56,586.77,1.45]
[1744896909437,0.64427778,587.56,586.77,1.45]
[1744896909637,0.30388702,587.55,586.77,1.45]
[1744896909835,0.34040235,587.54,586.77,1.45]
[1744896910134,0.30388702,587.53,586.77,1.45]
[1744896910335,0.34041394,587.52,586.77,1.45]
[1744896910537,0.30388702,587.51,586.77,1.45]
[1744896910939,0.34041394,587.52,586.77,1.45]
[1744896911434,0.30392076,587.51,586.77,1.45]
[1744896912434,0.34041394,587.52,586.77,1.45]
[1744896912739,0.3039024,587.51,586.77,1.45]
[1744896912940,0.34042553,587.5,586.77,1.45]
[1744896913137,0.3039024,587.49,586.77,1.45]
[1744896913337,0.34043712,587.48,586.77,1.45]
[1744896913637,0.3039024,587.47,586.77,1.45]
[1744896914037,0.563,587.46,586.77,1.45]
[1744896914235,0.30389066,587.45,586.77,1.45]
[1744896915742,0.30389169,587.44,586.77,1.45]
[1744896916040,0.30389169,587.43,586.77,1.45]
[1744896916240,0.30389169,587.45,586.77,1.45]
[1744896917341,0.30388421,587.44,586.77,1.45]
[1744896917541,0.30388421,587.43,586.77,1.45]
[1744896917743,0.30388421,587.45,586.77,1.45]
[1744896917945,0.30388421,587.44,586.77,1.45]
[1744896918244,0.30388421,587.43,586.77,1.45]
[1744896918445,0.30388421,587.45,586.77,1.45]
[1744896918944,0.30390204,587.44,586.77,1.45]
[1744896919142,0.30390204,587.45,586.77,1.45]
[1744896920444,0.563,587.46,586.77,1.45]
[1744896920745,0.30389999,587.45,586.77,1.45]
[1744896922338,0.3404603,587.44,586.77,1.45]
[1744896922545,0.30389999,587.43,586.77,1.45]
[1744896922745,0.34047189,587.42,586.77,1.45]
[1744896923047,0.30389999,587.41,586.77,1.45]
[1744896923247,0.34048348,587.4,586.77,1.45]
[1744896923442,0.30389999,587.39,586.77,1.45]
[1744896924945,0.34048348,587.4,586.77,1.45]
[1744896925447,0.30388317,587.39,586.77,1.45]
[1744896926848,0.34048348,587.4,586.77,1.45]
[1744896933647,0.30386395,587.39,586.77,1.45]
[1744896934550,0.64435323,587.39,586.77,1.45]
[1744896934851,0.6443513,587.38,586.77,1.45]
[1744896935050,0.30385623,587.37,586.77,1.45]
[1744896935754,0.545,587.36,586.77,1.45]
[1744896935951,0.30385623,587.35,586.77,1.45]
[1744896939454,0.545,587.36,586.77,1.45]
[1744896939654,0.30387643,587.35,585.77,1.07975686]
[1744896939855,0.30387643,587.37,585.79,0.34141927]
[1744896940053,0.30387643,587.36,585.8,0.31316032]
[1744896940255,0.30387643,587.37,585.82,0.34140179]
[1744896940553,0.30387643,587.37,585.83,0.31316032]
[1744896940755,0.30387643,587.37,585.85,0.34138431]
[1744896940954,0.30387643,587.37,585.86,0.31316032]
[1744896941154,0.30387643,587.37,585.88,0.34136683]
[1744896941349,0.30387643,587.37,585.89,0.31316032]
[1744896941547,0.30387643,587.37,585.91,0.34134935]
[1744896941751,0.30387643,587.37,585.92,0.31316032]
[1744896941948,0.30387643,587.37,585.94,0.34133187]
[1744896942149,0.30387643,587.37,585.95,0.31316032]
[1744896942352,0.30387643,587.37,585.97,0.3413144]
[1744896942553,0.30387643,587.37,585.98,0.31316032]
[1744896942754,0.30387643,587.37,586.0,0.34129692]
[1744896942949,0.30387643,587.37,586.01,0.31316032]
[1744896943149,0.608,587.36,586.03,0.34127945]
[1744896943348,0.30387643,587.35,586.04,0.31316032]
[1744896943951,0.30387643,587.35,586.06,0.34126198]
[1744896944249,0.30388623,587.34,586.07,0.31314427]
[1744896944456,0.30388623,587.33,586.09,0.34124451]
[1744896944650,0.30388623,587.32,586.1,0.31314427]
[1744896944853,0.30388623,587.35,586.12,0.34122705]
[1744896945150,0.30387634,587.34,586.13,0.31314427]
[1744896945349,0.30387634,587.35,586.15,0.34120958]
[1744896945553,0.608,587.36,586.16,0.31314427]
[1744896945749,0.608,587.36,586.17,0.34119794]
[1744896945955,0.608,587.36,586.18,0.31314427]
[1744896946555,0.608,587.36,586.19,0.3411863]
[1744896946755,0.608,587.36,586.2,0.31314427]
[1744896946959,0.608,587.36,586.21,0.34117466]
[1744896947154,0.608,587.36,586.22,0.31314427]
[1744896947350,0.608,587.36,586.23,0.34116302]
[1744896947558,0.608,587.36,586.24,0.31314427]
[1744896947756,0.608,587.36,586.25,0.34115138]
[1744896947957,0.608,587.36,586.26,0.31314427]
[1744896948452,0.608,587.36,586.27,0.34113974]
[1744896948658,0.608,587.36,586.28,0.31314427]
[1744896948953,0.608,587.36,586.29,0.34112811]
[1744896949257,0.608,587.36,586.3,0.31314427]
[1744896950358,0.608,587.36,586.31,0.34111647]
[1744896950659,0.608,587.36,586.32,0.31308676]
[1744896950958,0.608,587.36,586.33,0.34110483]
[1744896951155,0.608,587.36,586.34,0.31308676]
[1744896951354,0.608,587.36,586.35,0.3410932]
[1744896951659,0.608,587.36,586.36,0.31308676]
[1744896951956,0.608,587.36,586.37,0.34108156]
[1744896952260,0.608,587.36,586.38,0.31308676]
[1744896952457,0.608,587.36,586.39,0.34106993]
[1744896952662,0.608,587.36,586.4,0.31308676]
[1744896952962,0.608,587.36,586.41,0.3410583]
[1744896953157,0.608,587.36,586.42,0.31308676]
[1744896953358,0.608,587.36,586.43,0.34104667]
[1744896953558,0.608,587.36,586.44,0.31308676]
[1744896953761,0.608,587.36,586.45,0.34103504]
[1744896953962,0.608,587.36,586.46,0.31308676]
[1744896954162,0.608,587.36,586.47,0.34102341]
[1744896954360,0.608,587.36,586.48,0.31308676]
[1744896954561,0.608,587.36,586.49,0.34101178]
[1744896954761,0.608,587.36,586.5,0.31308676]
[1744896955263,0.608,587.36,586.49,0.34101178]
[1744896955562,0.608,587.36,586.5,0.3130451]
[1744896956864,0.608,587.36,586.49,0.34101178]
[1744896957163,0.608,587.36,586.27,0.29656521]
[1744896957164,0.608,587.36,586.51,0.34100015]
[1744896957365,0.608,587.36,586.52,0.31304451]
[1744896957758,0.608,587.36,586.53,0.34098852]
[1744896957962,0.608,587.36,586.54,0.31304451]
[1744896958158,0.608,587.36,586.55,0.34097689]
[1744896958364,0.608,587.36,586.56,0.31304451]
[1744896958664,0.608,587.36,586.57,0.34096527]
[1744896958964,0.608,587.36,586.58,0.31304451]
[1744896959966,0.608,587.36,586.59,0.34095364]
[1744896960165,0.608,587.36,586.6,0.31304451]
[1744896960365,0.608,587.36,586.61,0.34094202]
[1744896960567,0.608,587.36,586.62,0.31304451]
[1744896960767,0.608,587.36,586.63,0.34093039]
[1744896960961,0.608,587.36,586.64,0.31304451]
[1744896961163,0.608,587.36,586.65,0.34091877]
[1744896961366,0.608,587.36,586.66,0.31304451]
[1744896961566,0.608,587.36,586.67,0.34090715]
[1744896961762,0.608,587.36,586.68,0.31304451]
[1744896962469,0.608,587.36,586.69,0.34089553]
[1744896962666,0.608,587.36,586.7,0.31304451]
[1744896962867,0.608,587.36,586.71,0.34088391]
[1744896963066,0.608,587.36,586.72,0.31304451]
[1744896963965,0.608,587.36,586.73,0.34087229]
[1744896964167,0.608,587.36,586.74,0.31304451]
[1744896964366,0.608,587.36,586.75,0.34086067]
[1744896964567,0.608,587.36,586.76,0.31304451]
[1744896968574,0.608,587.36,586.75,0.34086067]
[1744896969378,0.608,587.36,586.76,0.31292209]
[1744896969584,0.608,587.36,586.76,0.65377695]
[1744896969780,0.608,587.36,586.77,0.31292209]
[1744896969977,0.608,587.36,586.77,0.65377114]
[1744896970185,0.608,587.36,586.78,0.31292209]
[1744896970385,0.608,587.36,586.79,0.34083743]
[1744896970585,0.608,587.36,586.8,0.31289672]
[1744896970783,0.608,587.36,586.79,0.34083743]
[1744896971086,0.608,587.36,586.8,0.31289838]
[1744896971285,0.608,587.36,586.8,0.65373]
[1744896971684,0.608,587.36,586.8,0.34083162]
[1744896972281,0.29648689,588.06,586.8,0.34083162]
[1744896972484,0.64422843,588.05,586.8,0.34083162]
[1744896972685,0.64423421,588.04,586.8,0.34083162]
[1744896972989,0.64424,588.03,586.81,0.31289974]
[1744896973188,0.3041213,588.02,586.81,0.31289974]
[1744896974086,0.3041213,588.02,586.81,0.77589974]
[1744896974285,0.3041213,588.02,586.82,0.31289974]
[1744896974483,0.507,588.01,586.82,0.31289974]
[1744896974687,0.3041213,588.0,586.82,0.31289974]
[1744896975089,0.3041213,588.0,586.81,0.463]
[1744896975483,0.3041213,588.0,586.82,0.31289855]
[1744896976687,0.3041213,588.0,586.83,0.3408142]
[1744896976888,0.3041213,588.0,586.84,0.31289855]
[1744896977489,0.3041213,588.0,586.85,0.34080259]
[1744896977685,0.3041213,588.0,586.86,0.31289855]
[1744896977990,0.3041213,588.0,586.87,0.34079097]
[1744896978189,0.3041213,588.0,586.88,0.31289855]
[1744896978788,0.507,588.01,586.87,0.92279097]
[1744896978987,0.30415823,588.0,586.88,0.3128551]
[1744896980093,0.30415823,588.0,586.87,0.92279097]
[1744896980392,0.507,588.01,586.87,0.92279097]
[1744896980594,0.30408376,588.0,586.88,0.31285901]
[1744896980793,0.507,588.01,586.87,0.92279097]
[1744896981491,0.3040699,588.0,586.87,0.92279097]
[1744896983695,0.507,588.01,586.87,0.92279097]
[1744896983994,0.30394722,588.0,586.87,0.92279097]
[1744896984893,0.30394722,588.0,586.88,0.31289056]
[1744896985195,0.30394722,588.0,586.87,0.92279097]
[1744896985396,0.30394722,588.0,586.88,0.31287379]
[1744896987197,0.30394722,588.0,586.89,0.34077936]
[1744896987497,0.30394722,588.0,586.9,0.31287379]
[1744896987696,0.30394722,588.0,586.91,0.34076774]
[1744896987899,0.30394722,588.0,586.92,0.31287379]
[1744896989298,0.30394722,588.0,586.92,0.88987379]
[1744896989500,0.30394722,588.0,586.93,0.31287379]
[1744896990096,0.30394722,588.0,586.92,0.577]
[1744896990300,0.30402886,587.99,586.93,0.31282034]
[1744896990500,0.30402886,588.0,586.93,0.31282034]
[1744896990800,0.30402886,587.99,586.93,0.31282034]
[1744896990999,0.30402886,588.0,586.93,0.31282034]
[1744896992601,0.507,588.01,586.92,0.577]
[1744896992801,0.3040011,588.0,586.92,0.577]
[1744896993397,0.507,588.01,586.92,0.577]
[1744896993604,0.30399144,588.0,586.92,0.577]
[1744896993801,0.30399144,588.02,586.92,0.577]
[1744896993998,0.30399144,588.01,586.92,0.577]
[1744896994197,0.30399144,588.02,586.92,0.577]
[1744896994402,0.30399144,588.01,586.92,0.577]
[1744896994698,0.30399144,588.0,586.92,0.577]
[1744896994899,0.30399144,588.02,586.92,0.577]
[1744896995202,0.30399144,588.02,586.92,0.988]
[1744896996505,0.34013026,588.01,586.92,0.988]
[1744896996706,0.30399144,588.0,586.92,0.988]
[1744896998407,0.30394446,587.99,586.92,0.988]
[1744896998608,0.30394446,588.0,586.92,0.988]
[1744896999206,0.64408051,588.0,586.92,0.988]
[1744896999403,0.64408629,587.99,586.92,0.988]
[1744896999603,0.64409208,587.98,586.92,0.988]
[1744896999805,0.64409786,587.97,586.92,0.988]
[1744897000006,0.30394446,587.96,586.92,0.988]
[1744897006314,0.30394446,587.96,586.93,0.31290646]
[1744897007414,0.30394446,587.96,586.92,0.988]
[1744897007915,0.3401534,587.97,586.92,0.988]
[1744897008115,0.30395365,587.96,586.92,0.988]
[1744897008411,0.30395365,587.96,586.93,0.31290971]
[1744897008611,0.30395365,587.96,586.92,0.988]
[1744897009515,0.3401534,587.97,586.92,0.988]
[1744897009713,0.30394513,587.96,586.92,0.988]
[1744897009913,0.34016498,587.95,586.92,0.988]
[1744897010114,0.30394513,587.94,586.92,0.988]
[1744897010617,0.34017655,587.93,586.92,0.988]
[1744897010818,0.30394513,587.92,586.92,0.988]
[1744897011017,0.64412746,587.92,586.92,0.988]
[1744897011316,0.30394513,587.91,586.92,0.988]
[1744897018222,0.34018233,587.92,586.92,0.988]
[1744897018422,0.30417924,587.91,586.92,0.988]
[1744897022028,0.464,587.9,586.92,0.988]
[1744897022322,0.30417924,587.89,586.92,0.988]
[1744897023724,0.464,587.9,586.92,0.988]
[1744897024023,0.30403692,587.89,586.92,0.988]
[1744897027033,0.464,587.9,586.92,0.988]
[1744897027229,0.30401204,587.89,586.92,0.988]
[1744897030332,0.464,587.9,586.92,0.988]
[1744897030632,0.30403276,587.89,586.92,0.988]
[1744897031930,0.464,587.9,586.92,0.988]
[1744897032134,0.30402635,587.89,586.92,0.988]
[1744897035433,0.30402635,587.91,586.92,0.988]
[1744897035634,0.30402635,587.9,586.92,0.988]
[1744897035833,0.30402635,587.91,586.92,0.988]
[1744897036134,0.30402635,587.9,586.92,0.988]
[1744897036335,0.30402635,587.91,586.92,0.988]
[1744897036836,0.34018233,587.92,586.92,0.988]
[1744897037137,0.3040079,587.91,586.92,1.624]
[1744897037535,0.508,587.9,586.92,1.624]
[1744897037734,0.3040079,587.89,586.92,1.624]
[1744897038535,0.508,587.9,586.92,1.624]
[1744897038736,0.30405038,587.89,586.92,1.624]
[1744897039736,0.508,587.9,586.92,1.624]
[1744897049643,0.508,587.9,586.93,0.31285444]
[1744897050145,0.508,587.9,586.94,0.31285522]
[1744897050339,0.30395118,587.89,586.93,0.31285522]
[1744897050541,0.30395118,587.89,586.94,0.31285522]
[1744897050740,0.30395118,587.91,586.93,0.31285522]
[1744897050942,0.30395118,587.9,586.95,0.31285522]
[1744897051141,0.30395118,587.89,586.96,0.31285522]
[1744897051346,0.30395118,587.91,586.93,0.31285522]
[1744897051546,0.30395118,587.9,586.94,0.31285522]
[1744897051747,0.34018233,587.92,586.95,0.31285522]
[1744897051942,0.34018233,587.92,586.93,0.31285522]
[1744897052143,0.30396294,587.91,586.92,0.636]
[1744897052340,0.30396294,587.91,586.93,1.42985578]
[1744897052545,0.30396294,587.91,586.94,0.31285578]
[1744897053248,0.372,587.9,586.94,0.31285578]
[1744897053748,0.30396415,587.89,586.94,0.31285578]
[1744897054848,0.372,587.9,586.93,1.117]
[1744897055050,0.30396296,587.89,586.94,0.31285593]
[1744897056449,0.372,587.9,586.93,1.41328873]
[1744897056650,0.3039666,587.89,586.94,0.31285813]
[1744897059747,0.3039475,587.88,586.93,1.117]
[1744897060053,0.3039475,587.87,586.94,0.31286711]
[1744897060354,0.3039475,587.86,586.94,0.31286711]
[1744897060553,0.3039475,587.89,586.94,0.31286711]
[1744897060755,0.372,587.9,586.94,0.31286711]
[1744897060954,0.30394708,587.89,586.94,0.31286711]
[1744897062053,0.30394708,587.91,586.94,0.31286711]
[1744897062252,0.30394708,587.9,586.94,0.31286711]
[1744897062453,0.34018233,587.92,586.93,0.29628873]
[1744897062649,0.34018233,587.92,586.91,0.34076774]
[1744897062854,0.30394501,587.91,586.91,0.34076774]
[1744897063857,0.30394501,587.91,586.91,0.6371309]
[1744897064351,0.30394501,587.91,586.91,0.34076774]
[1744897064549,0.303919,587.9,586.91,0.34076774]
[1744897064750,0.303919,587.91,586.91,0.34076774]
[1744897064951,0.303919,587.9,586.91,0.34076774]
[1744897065251,0.303919,587.91,586.91,0.34076774]
[1744897065452,0.303919,587.9,586.91,0.34076774]
[1744897065656,0.303919,587.91,586.91,0.34076774]
[1744897065857,0.303919,587.9,586.91,0.34076774]
[1744897066358,0.30391749,587.89,586.91,0.34076774]
[1744897066659,0.30391749,587.91,586.91,0.34076774]
[1744897066859,0.30391749,587.9,586.91,0.34076774]
[1744897067158,0.30391749,587.89,586.91,0.34076774]
[1744897067358,0.67291749,587.89,586.91,0.80276774]
[1744897067553,0.30391749,587.88,586.91,1.34276774]
[1744897068059,0.30391749,587.88,586.91,1.77376774]
[1744897072560,0.369,587.89,586.91,1.77376774]
[1744897072759,0.30388776,587.88,586.91,1.77376774]
[1744897075858,0.369,587.89,586.91,1.77376774]
[1744897076059,0.30389309,587.88,586.91,1.77376774]
[1744897076456,0.34020548,587.88,586.91,1.77376774]
[1744897081165,0.34020548,587.88,586.91,1.31176774]
[1744897084466,0.34020548,587.88,586.91,1.86176774]
[1744897087262,0.85485193,587.87,586.91,1.86176774]
[1744897087468,1.1950632,587.87,586.91,1.86176774]
[1744897087766,0.64404077,587.86,586.91,1.521]
[1744897087967,0.30382372,587.85,586.91,1.521]
[1744897088468,0.34022863,587.84,586.91,1.521]
[1744897091871,0.34022863,587.84,586.72,0.29635307]
[1744897092673,0.34022863,587.84,585.85,1.07975686]
[1744897092871,0.34022863,587.84,585.87,0.34137265]
[1744897093066,0.34022863,587.84,585.88,0.31298191]
[1744897093264,0.34022863,587.84,585.9,0.34135518]
[1744897093466,0.34022863,587.84,585.91,0.31298221]
[1744897093668,0.30381973,587.83,585.93,0.3413377]
[1744897093866,0.30381973,587.83,585.94,0.31298221]
[1744897094067,0.30381973,587.83,585.96,0.34132022]
[1744897094274,0.3402402,587.82,585.97,0.31298221]
[1744897094473,0.30381973,587.81,585.99,0.34130275]
[1744897094772,0.34025178,587.8,586.0,0.31298221]
[1744897094969,0.30381973,587.79,586.02,0.34128528]
[1744897095168,0.34026336,587.78,586.03,0.31298221]
[1744897095372,0.30381973,587.77,586.05,0.3412678]
[1744897095568,0.34027494,587.76,586.06,0.31298221]
[1744897095973,0.34027494,587.76,586.08,0.34125034]
[1744897096273,0.34027494,587.76,586.09,0.71098221]
[1744897096568,0.34027494,587.76,586.11,0.34123287]
[1744897096770,0.426,587.75,586.12,0.31298394]
[1744897096974,0.426,587.75,586.14,0.3412154]
[1744897097175,0.426,587.75,586.15,0.31298394]
[1744897097370,0.426,587.75,586.17,0.34119794]
[1744897097571,0.30382743,587.74,586.18,0.31298394]
[1744897097769,0.426,587.75,586.2,0.34118048]
[1744897097977,0.426,587.75,586.21,0.31298394]
[1744897098171,0.426,587.75,586.23,0.34116302]
[1744897098369,0.30382531,587.74,586.24,0.3129816]
[1744897098569,0.30382531,587.74,586.26,0.34114556]
[1744897098771,0.30382531,587.74,586.27,0.3129816]
[1744897098970,0.30382531,587.74,586.29,0.34112811]
[1744897099171,0.30382531,587.74,586.3,0.3129816]
[1744897099374,0.30382531,587.74,586.32,0.34111065]
[1744897099576,0.30382531,587.74,586.33,0.3129816]
[1744897099779,0.30382531,587.74,586.35,0.3410932]
[1744897099976,0.30382531,587.74,586.36,0.3129816]
[1744897100173,0.30382531,587.74,586.38,0.34107575]
[1744897100377,0.30382531,587.74,586.39,0.3129816]
[1744897100573,0.30382531,587.74,586.41,0.3410583]
[1744897100772,0.30382531,587.74,586.42,0.3129816]
[1744897100974,0.30382531,587.74,586.43,0.34104667]
[1744897101172,0.30382531,587.74,586.44,0.3129816]
[1744897101377,0.30382531,587.74,586.45,0.34103504]
[1744897101576,0.30382531,587.74,586.46,0.3129816]
[1744897101778,0.30382531,587.74,586.47,0.34102341]
[1744897102078,0.30382531,587.74,586.48,0.3129816]
[1744897102477,0.30382531,587.74,586.49,0.34101178]
[1744897102777,0.30382531,587.74,586.5,0.3129816]
[1744897102978,0.30382531,587.74,586.51,0.34100015]
[1744897103175,0.30382531,587.74,586.52,0.3129816]
[1744897103372,0.30382531,587.74,586.53,0.34098852]
[1744897103577,0.30382531,587.74,586.54,0.3129816]
[1744897103777,0.30382531,587.74,586.55,0.34097689]
[1744897103980,0.30382531,587.74,586.56,0.3129816]
[1744897104179,0.30382531,587.74,586.57,0.34096527]
[1744897104375,0.30382531,587.74,586.58,0.3129816]
[1744897104574,0.30382531,587.74,586.59,0.34095364]
[1744897104777,0.30382531,587.74,586.6,0.3129816]
[1744897104978,0.426,587.75,586.61,0.34094202]
[1744897110386,0.426,587.75,586.62,0.31292371]
[1744897110587,0.426,587.75,586.63,0.34093039]
[1744897110788,0.426,587.75,586.64,0.31292371]
[1744897111085,0.426,587.75,586.65,0.34091877]
[1744897111481,0.426,587.75,586.66,0.31287927]
[1744897111680,0.426,587.75,586.67,0.34090715]
[1744897111879,0.426,587.75,586.68,0.31287927]
[1744897112081,0.426,587.75,586.69,0.34089553]
[1744897112282,0.426,587.75,586.7,0.31287927]
[1744897115480,0.426,587.75,586.69,0.34089553]
[1744897115684,0.426,587.75,586.7,0.31289689]
[1744897116182,0.426,587.75,586.69,0.34089553]
[1744897116385,0.426,587.75,586.7,0.31288994]
[1744897116787,0.426,587.75,586.71,0.34088391]
[1744897116984,0.426,587.75,586.72,0.31288994]
[1744897117184,0.426,587.75,586.73,0.34087229]
[1744897117380,0.426,587.75,586.74,0.31288994]
[1744897117681,0.426,587.75,586.75,0.34086067]
[1744897117988,0.426,587.75,586.76,0.31289225]
[1744897118184,0.426,587.75,586.77,0.34084905]
[1744897118383,0.426,587.75,586.78,0.31289225]
[1744897119390,0.426,587.75,586.77,0.34084905]
[1744897119589,0.426,587.75,586.78,0.3128916]
[1744897121088,0.426,587.75,586.77,0.34084905]
[1744897121288,0.426,587.75,586.78,0.31289317]
[1744897122090,0.30383385,587.74,586.78,0.31289317]
[1744897123288,0.426,587.75,586.77,0.34084905]
[1744897123791,0.34027494,587.76,586.77,0.34084905]
[1744897127591,0.392,587.75,586.77,0.34084905]
[1744897133208,0.30391834,587.74,586.78,0.31292952]
[1744897135312,0.392,587.75,586.78,0.31292952]
[1744897137513,0.392,587.75,586.77,0.34084905]
[1744897137713,0.392,587.75,586.78,0.31293508]
[1744897138714,0.392,587.75,586.77,0.34084905]
[1744897141416,0.392,587.75,586.77,0.80884905]
[1744897142918,0.392,587.75,586.77,1.22184905]
[1744897144220,0.30383094,587.74,586.77,1.22184905]
[1744897146418,0.392,587.75,586.77,1.22184905]
[1744897147120,0.30382869,587.74,586.77,1.22184905]
[1744897147718,0.392,587.75,586.77,1.22184905]
[1744897147918,0.30382054,587.74,586.77,1.22184905]
[1744897148614,0.30381901,587.73,586.77,1.22184905]
[1744897148918,0.30381901,587.72,586.77,1.22184905]
[1744897149217,0.30381901,587.74,586.77,1.22184905]
[1744897149412,0.30381901,587.73,586.77,1.22184905]
[1744897149616,0.30381901,587.74,586.77,1.22184905]
[1744897149817,0.30381901,587.73,586.77,1.22184905]
[1744897150017,0.30381901,587.72,586.77,1.22184905]
[1744897150318,0.30381901,587.71,586.77,1.72084905]
[1744897150519,0.30381901,587.74,586.77,1.72084905]
[1744897150719,0.30381901,587.73,586.77,1.72084905]
[1744897150916,0.30381901,587.74,586.77,1.72084905]
[1744897151114,0.30381901,587.73,586.77,1.72084905]
[1744897151316,0.392,587.75,586.77,1.72084905]
[1744897151317,0.30381901,587.74,586.77,1.72084905]
[1744897151513,0.30381901,587.73,586.77,1.72084905]
[1744897151714,0.30381901,587.74,586.77,1.72084905]
[1744897151914,0.30381901,587.73,586.77,1.72084905]
[1744897152119,0.30381945,587.72,586.77,1.72084905]
[1744897152421,0.30381945,587.71,586.77,1.72084905]
[1744897152722,0.30381945,587.7,586.77,1.72084905]
[1744897152923,0.30381945,587.75,586.77,1.72084905]
[1744897153624,0.34028652,587.74,586.77,1.72084905]
[1744897153922,0.30381945,587.73,586.77,1.72084905]
[1744897154222,0.3402981,587.72,586.77,1.72084905]
[1744897154422,0.30381945,587.71,586.77,1.72084905]
[1744897156224,0.375,587.7,586.77,1.72084905]
[1744897156428,0.30381945,587.69,586.77,1.72084905]
[1744897156628,0.375,587.7,586.77,1.72084905]
[1744897157125,0.375,587.7,586.77,1.38]
[1744897157326,0.34031547,587.69,586.77,1.38]
[1744897159821,0.29645026,587.68,586.77,1.38]
[1744897160024,0.34032705,587.67,586.77,1.38]
[1744897161527,0.30360868,587.66,586.77,1.38]
[1744897161727,0.34033863,587.65,586.77,1.38]
[1744897161929,0.30360868,587.64,586.77,1.38]
[1744897162124,0.34035022,587.63,586.77,1.38]
[1744897162325,0.30360868,587.62,586.77,1.38]
[1744897162629,0.3403618,587.61,586.77,1.38]
[1744897162929,0.30360868,587.6,586.77,1.38]
[1744897163129,0.34037338,587.59,586.77,1.38]
[1744897163325,0.30359059,587.58,586.77,1.38]
[1744897163528,0.34038497,587.57,586.77,1.38]
[1744897163725,0.30359059,587.56,586.77,1.38]
[1744897163932,0.64398135,587.56,586.77,1.38]
[1744897164126,0.30359059,587.55,586.77,1.38]
[1744897165125,0.64398715,587.55,586.77,1.38]
[1744897165332,0.64399294,587.54,586.77,1.38]
[1744897165531,0.64399873,587.53,586.77,1.38]
[1744897165831,0.30359059,587.52,586.77,1.38]
[1744897166832,0.34041973,587.51,586.77,1.38]
[1744897167133,0.30359059,587.5,586.77,1.38]
[1744897167332,0.64401612,587.5,586.77,1.38]
[1744897167633,0.34042553,587.5,586.77,1.38]
[1744897167831,0.30343578,587.49,586.77,1.38]
[1744897168034,0.34042553,587.5,586.77,1.38]
[1744897169135,0.30345731,587.49,586.77,1.38]
[1744897171537,0.34042553,587.5,586.77,1.38]
[1744897186747,0.581,587.49,586.77,1.38]
[1744897206569,0.30358244,587.48,586.77,1.38]
[1744897207068,0.30358244,587.47,586.77,1.38]
[1744897207269,0.30358244,588.39,586.77,1.38]